[Event "Titled Tuesday Blitz November 15 Late 2022"]
[White "Sjugirov, Sanan"]
[Black "Petrovic, Aleksa"]
[WhiteFideId "4189302"]
[BlackFideId "967629"]
[WhiteElo "2611"]
[BlackElo "2224"]
[Result "1-0"]
[Round "01"]
[TimeControl "180+1"]
[Date "2022.11.16"]
[WhiteClock "0:00:06"]
[BlackClock "0:00:04"]

1. d4 {[%clk 0:03:00]}  Nf6 {[%clk 0:02:59]} 2. Nf3 {[%clk 0:03:00]}  e6 {[%clk 0:02:59]} 3. Bf4 {[%clk 0:03:00]}  c5 {[%clk 0:02:59]} 4. e3 {[%clk 0:03:00]}  Qb6 {[%clk 0:02:59]} 5. Nc3 {[%clk 0:02:53]}  a6 {[%clk 0:02:58]} 6. Rb1 {[%clk 0:02:43]}  Nc6 {[%clk 0:02:55]} 7. Be2 {[%clk 0:02:40]}  d5 {[%clk 0:02:53]} 8. O-O {[%clk 0:02:38]}  cxd4 {[%clk 0:02:52]} 9. exd4 {[%clk 0:02:37]}  Be7 {[%clk 0:02:53]} 10. Na4 {[%clk 0:02:33]}  Qa7 {[%clk 0:02:45]} 11. a3 {[%clk 0:02:10]}  b5 {[%clk 0:02:44]} 12. Nc3 {[%clk 0:02:10]}  O-O {[%clk 0:02:44]} 13. a4 {[%clk 0:01:57]}  b4 {[%clk 0:02:41]} 14. Na2 {[%clk 0:01:57]}  Ne4 {[%clk 0:02:29]} 15. Nc1 {[%clk 0:01:53]}  Bd7 {[%clk 0:02:25]} 16. Nb3 {[%clk 0:01:52]}  f5 {[%clk 0:02:20]} 17. Bd3 {[%clk 0:01:35]}  g5 {[%clk 0:02:12]} 18. Be3 {[%clk 0:01:35]}  f4 {[%clk 0:01:53]} 19. Bc1 {[%clk 0:01:35]}  g4 {[%clk 0:01:50]} 20. Bxe4 {[%clk 0:01:24]}  dxe4 {[%clk 0:01:47]} 21. Nfd2 {[%clk 0:01:25]}  f3 {[%clk 0:01:42]} 22. Nxe4 {[%clk 0:01:24]}  Rf5 {[%clk 0:01:26]} 23. Be3 {[%clk 0:01:16]}  Qc7 {[%clk 0:01:21]} 24. Ng3 {[%clk 0:01:16]}  Rf7 {[%clk 0:01:06]} 25. c4 {[%clk 0:00:54]}  bxc3 {[%clk 0:01:02]} 26. bxc3 {[%clk 0:00:54]}  Na5 {[%clk 0:01:01]} 27. Nxa5 {[%clk 0:00:52]}  Qxa5 {[%clk 0:01:02]} 28. Qd3 {[%clk 0:00:49]}  Bc6 {[%clk 0:00:54]} 29. c4 {[%clk 0:00:28]}  fxg2 {[%clk 0:00:52]} 30. Rfc1 {[%clk 0:00:27]}  Bf3 {[%clk 0:00:50]} 31. d5 {[%clk 0:00:25]}  exd5 {[%clk 0:00:44]} 32. c5 {[%clk 0:00:25]}  Qd8 {[%clk 0:00:28]} 33. c6 {[%clk 0:00:24]}  Bh4 {[%clk 0:00:27]} 34. Nf5 {[%clk 0:00:19]}  Qf6 {[%clk 0:00:20]} 35. Nh6+ {[%clk 0:00:18]}  Kg7 {[%clk 0:00:17]} 36. Bd4 {[%clk 0:00:12]}  Kxh6 {[%clk 0:00:13]} 37. Bxf6 {[%clk 0:00:11]}  Rxf6 {[%clk 0:00:14]} 38. Qd4 {[%clk 0:00:07]}  Be4 {[%clk 0:00:12]} 39. Rb2 {[%clk 0:00:06]}  Raf8 {[%clk 0:00:11]} 40. c7 {[%clk 0:00:06]}  Rxf2 {[%clk 0:00:04]} 41. Rxf2 {[%clk 0:00:06]}  Bxf2+ {[%clk 0:00:04]} 42. Qxf2 {[%clk 0:00:06]} 1-0


[Site "https://www.chess.com"]

[Event "Titled Tuesday Blitz November 15 Late 2022"]
[White "Sohal, Tanraj"]
[Black "Quirke, Jeffrey"]
[WhiteFideId "2608499"]
[BlackFideId "2013029"]
[WhiteElo "2200"]
[BlackElo "2201"]
[Result "0-1"]
[Round "01"]
[TimeControl "180+1"]
[Date "2022.11.16"]
[WhiteClock "0:01:01"]
[BlackClock "0:00:58"]

1. d4 {[%clk 0:02:59]}  d5 {[%clk 0:02:59]} 2. Nf3 {[%clk 0:03:00]}  Nf6 {[%clk 0:02:58]} 3. b3 {[%clk 0:03:00]}  Bf5 {[%clk 0:02:54]} 4. Bb2 {[%clk 0:03:00]}  e6 {[%clk 0:02:54]} 5. Nbd2 {[%clk 0:03:00]}  Nbd7 {[%clk 0:02:52]} 6. e3 {[%clk 0:02:59]}  c6 {[%clk 0:02:52]} 7. Nh4 {[%clk 0:03:00]}  Bg6 {[%clk 0:02:50]} 8. Nxg6 {[%clk 0:03:00]}  hxg6 {[%clk 0:02:51]} 9. g3 {[%clk 0:03:00]}  Bd6 {[%clk 0:02:49]} 10. Bg2 {[%clk 0:03:01]}  O-O {[%clk 0:02:48]} 11. O-O {[%clk 0:03:00]}  Qe7 {[%clk 0:02:48]} 12. f4 {[%clk 0:03:00]}  Ba3 {[%clk 0:02:42]} 13. Qc1 {[%clk 0:02:58]}  Bxb2 {[%clk 0:02:41]} 14. Qxb2 {[%clk 0:02:59]}  a5 {[%clk 0:02:41]} 15. c4 {[%clk 0:02:56]}  a4 {[%clk 0:02:39]} 16. c5 {[%clk 0:02:56]}  b5 {[%clk 0:02:36]} 17. b4 {[%clk 0:02:54]}  Ng4 {[%clk 0:02:28]} 18. Qc3 {[%clk 0:02:51]}  f5 {[%clk 0:02:28]} 19. a3 {[%clk 0:02:49]}  Ngf6 {[%clk 0:02:21]} 20. Qd3 {[%clk 0:02:42]}  g5 {[%clk 0:02:13]} 21. fxg5 {[%clk 0:02:40]}  Ne4 {[%clk 0:02:13]} 22. h4 {[%clk 0:02:32]}  Nxg3 {[%clk 0:02:07]} 23. Rf4 {[%clk 0:02:32]}  Nh5 {[%clk 0:01:54]} 24. Rf2 {[%clk 0:02:30]}  g6 {[%clk 0:01:54]} 25. Raf1 {[%clk 0:02:22]}  Rf7 {[%clk 0:01:54]} 26. Bf3 {[%clk 0:02:20]}  Ng7 {[%clk 0:01:51]} 27. Rh2 {[%clk 0:02:15]}  Raf8 {[%clk 0:01:51]} 28. Rff2 {[%clk 0:02:14]}  e5 {[%clk 0:01:46]} 29. Qf1 {[%clk 0:02:05]}  f4 {[%clk 0:01:37]} 30. e4 {[%clk 0:02:03]}  dxe4 {[%clk 0:01:29]} 31. Nxe4 {[%clk 0:02:03]}  exd4 {[%clk 0:01:27]} 32. Nd6 {[%clk 0:02:03]}  Nf5 {[%clk 0:01:20]} 33. Nxf7 {[%clk 0:02:01]}  Rxf7 {[%clk 0:01:17]} 34. Bxc6 {[%clk 0:02:00]}  Ne3 {[%clk 0:01:12]} 35. Qd3 {[%clk 0:01:52]}  Ne5 {[%clk 0:01:10]} 36. Qe4 {[%clk 0:01:48]}  Qe6 {[%clk 0:01:04]} 37. Rxf4 {[%clk 0:01:19]}  Qg4+ {[%clk 0:01:03]} 38. Qg2 {[%clk 0:01:01]}  Qxf4 {[%clk 0:00:58]} 0-1


[Site "https://www.chess.com"]

[Event "Titled Tuesday Blitz November 15 Late 2022"]
[White "Sokolovsky, Yahli"]
[Black "Bach, Matthias"]
[WhiteFideId "2820242"]
[BlackFideId "4603168"]
[WhiteElo "2316"]
[BlackElo "2165"]
[Result "1-0"]
[Round "01"]
[TimeControl "180+1"]
[Date "2022.11.16"]
[WhiteClock "0:00:03"]
[BlackClock "0:00:02"]

1. b3 {[%clk 0:03:00]}  Nf6 {[%clk 0:02:57]} 2. Bb2 {[%clk 0:02:59]}  g6 {[%clk 0:02:58]} 3. Nf3 {[%clk 0:02:58]}  Bg7 {[%clk 0:02:57]} 4. g3 {[%clk 0:02:58]}  d6 {[%clk 0:02:56]} 5. Bg2 {[%clk 0:02:56]}  Bd7 {[%clk 0:02:56]} 6. d4 {[%clk 0:02:45]}  Qc8 {[%clk 0:02:56]} 7. O-O {[%clk 0:02:39]}  Bh3 {[%clk 0:02:54]} 8. c4 {[%clk 0:02:35]}  Bxg2 {[%clk 0:02:53]} 9. Kxg2 {[%clk 0:02:35]}  h5 {[%clk 0:02:51]} 10. h4 {[%clk 0:02:28]}  Ng4 {[%clk 0:02:38]} 11. Qd2 {[%clk 0:02:25]}  Nd7 {[%clk 0:02:36]} 12. Nc3 {[%clk 0:02:15]}  Ndf6 {[%clk 0:02:34]} 13. e4 {[%clk 0:02:12]}  O-O {[%clk 0:02:16]} 14. e5 {[%clk 0:02:08]}  Nd7 {[%clk 0:02:15]} 15. Nd5 {[%clk 0:02:02]}  Re8 {[%clk 0:02:14]} 16. Rfe1 {[%clk 0:01:37]}  e6 {[%clk 0:02:11]} 17. Nf4 {[%clk 0:01:38]}  dxe5 {[%clk 0:01:47]} 18. dxe5 {[%clk 0:01:39]}  c5 {[%clk 0:01:44]} 19. Rad1 {[%clk 0:01:37]}  Rd8 {[%clk 0:01:42]} 20. Nd3 {[%clk 0:01:22]}  Qc6 {[%clk 0:01:38]} 21. Qf4 {[%clk 0:01:20]}  a5 {[%clk 0:01:21]} 22. a4 {[%clk 0:01:08]}  Qb6 {[%clk 0:01:12]} 23. Nc1 {[%clk 0:01:09]}  Nb8 {[%clk 0:01:05]} 24. Rxd8+ {[%clk 0:00:59]}  Qxd8 {[%clk 0:01:06]} 25. Ng5 {[%clk 0:01:00]}  Qc7 {[%clk 0:01:02]} 26. Nd3 {[%clk 0:00:52]}  Nc6 {[%clk 0:01:00]} 27. f3 {[%clk 0:00:46]}  Nh6 {[%clk 0:01:00]} 28. Nxc5 {[%clk 0:00:46]}  Rd8 {[%clk 0:00:58]} 29. Nce4 {[%clk 0:00:38]}  Nxe5 {[%clk 0:00:48]} 30. Nf6+ {[%clk 0:00:28]}  Bxf6 {[%clk 0:00:39]} 31. Qxf6 {[%clk 0:00:29]}  Rd2+ {[%clk 0:00:36]} 32. Kh1 {[%clk 0:00:15]}  Rxb2 {[%clk 0:00:34]} 33. Rxe5 {[%clk 0:00:14]}  Qc6 {[%clk 0:00:35]} 34. Rxe6 {[%clk 0:00:10]}  Rb1+ {[%clk 0:00:32]} 35. Kh2 {[%clk 0:00:08]}  Rb2+ {[%clk 0:00:32]} 36. Kh3 {[%clk 0:00:08]}  Qd7 {[%clk 0:00:31]} 37. Qe7 {[%clk 0:00:04]}  Qxe7 {[%clk 0:00:28]} 38. Rxe7 {[%clk 0:00:05]}  Rxb3 {[%clk 0:00:28]} 39. Ne4 {[%clk 0:00:05]}  Rb4 {[%clk 0:00:28]} 40. c5 {[%clk 0:00:06]}  Rxa4 {[%clk 0:00:27]} 41. Rxb7 {[%clk 0:00:06]}  Rc4 {[%clk 0:00:27]} 42. Rc7 {[%clk 0:00:07]}  a4 {[%clk 0:00:27]} 43. c6 {[%clk 0:00:07]}  Kg7 {[%clk 0:00:27]} 44. Ra7 {[%clk 0:00:06]}  Rxc6 {[%clk 0:00:26]} 45. Rxa4 {[%clk 0:00:06]}  Nf5 {[%clk 0:00:26]} 46. Ng5 {[%clk 0:00:07]}  Nd6 {[%clk 0:00:26]} 47. Ra7 {[%clk 0:00:06]}  Rb6 {[%clk 0:00:24]} 48. Rd7 {[%clk 0:00:06]}  Kf6 {[%clk 0:00:24]} 49. Rc7 {[%clk 0:00:04]}  Kg7 {[%clk 0:00:24]} 50. Ra7 {[%clk 0:00:04]}  Rb7 {[%clk 0:00:24]} 51. Ra6 {[%clk 0:00:04]}  Nf5 {[%clk 0:00:24]} 52. Ra5 {[%clk 0:00:05]}  Nd4 {[%clk 0:00:24]} 53. Rd5 {[%clk 0:00:04]}  Ne2 {[%clk 0:00:24]} 54. Rd2 {[%clk 0:00:04]}  Nc3 {[%clk 0:00:22]} 55. Rd3 {[%clk 0:00:05]}  Nb5 {[%clk 0:00:20]} 56. g4 {[%clk 0:00:05]}  hxg4+ {[%clk 0:00:19]} 57. fxg4 {[%clk 0:00:06]}  Na7 {[%clk 0:00:18]} 58. Rd6 {[%clk 0:00:05]}  Nb5 {[%clk 0:00:17]} 59. Rd3 {[%clk 0:00:05]}  Na7 {[%clk 0:00:17]} 60. Ne4 {[%clk 0:00:06]}  Nc6 {[%clk 0:00:17]} 61. Rd5 {[%clk 0:00:06]}  Ne7 {[%clk 0:00:16]} 62. Re5 {[%clk 0:00:06]}  Ng8 {[%clk 0:00:16]} 63. g5 {[%clk 0:00:06]}  Ne7 {[%clk 0:00:16]} 64. Kg4 {[%clk 0:00:06]}  Nf5 {[%clk 0:00:16]} 65. Re8 {[%clk 0:00:06]}  Rb4 {[%clk 0:00:16]} 66. Kh3 {[%clk 0:00:05]}  Rb3+ {[%clk 0:00:16]} 67. Kh2 {[%clk 0:00:05]}  Rb2+ {[%clk 0:00:16]} 68. Kh1 {[%clk 0:00:05]}  Rb1+ {[%clk 0:00:16]} 69. Kg2 {[%clk 0:00:05]}  Rb2+ {[%clk 0:00:16]} 70. Kf1 {[%clk 0:00:05]}  Rb1+ {[%clk 0:00:12]} 71. Kf2 {[%clk 0:00:04]}  Rb2+ {[%clk 0:00:11]} 72. Ke1 {[%clk 0:00:05]}  Nxh4 {[%clk 0:00:10]} 73. Nf6 {[%clk 0:00:05]}  Nf3+ {[%clk 0:00:10]} 74. Kd1 {[%clk 0:00:04]}  Nxg5 {[%clk 0:00:10]} 75. Nd7 {[%clk 0:00:04]}  Rb7 {[%clk 0:00:08]} 76. Nc5 {[%clk 0:00:04]}  Rc7 {[%clk 0:00:08]} 77. Nd3 {[%clk 0:00:05]}  Rd7 {[%clk 0:00:08]} 78. Ke2 {[%clk 0:00:06]}  Ne6 {[%clk 0:00:07]} 79. Ne5 {[%clk 0:00:06]}  Rd8 {[%clk 0:00:06]} 80. Re7 {[%clk 0:00:06]}  Rf8 {[%clk 0:00:06]} 81. Nd7 {[%clk 0:00:06]}  Rd8 {[%clk 0:00:04]} 82. Ke3 {[%clk 0:00:03]}  Nf8 {[%clk 0:00:02]} 83. Ne5 {[%clk 0:00:03]} 1-0


[Site "https://www.chess.com"]

[Event "Titled Tuesday Blitz November 15 Late 2022"]
[White "Suder, Jakub"]
[Black "Pino Perez, Lazaro"]
[WhiteFideId "1195310"]
[BlackFideId "3517055"]
[WhiteElo "2243"]
[BlackElo "2170"]
[Result "0-1"]
[Round "01"]
[TimeControl "180+1"]
[Date "2022.11.16"]
[WhiteClock "0:00:21"]
[BlackClock "0:00:04"]

1. d4 {[%clk 0:03:00]}  d5 {[%clk 0:02:59]} 2. c4 {[%clk 0:03:01]}  e6 {[%clk 0:02:59]} 3. Nc3 {[%clk 0:03:01]}  Be7 {[%clk 0:02:58]} 4. cxd5 {[%clk 0:03:01]}  exd5 {[%clk 0:02:57]} 5. Bf4 {[%clk 0:03:01]}  c6 {[%clk 0:02:56]} 6. e3 {[%clk 0:03:02]}  Bf5 {[%clk 0:02:56]} 7. g4 {[%clk 0:03:02]}  Be6 {[%clk 0:02:56]} 8. h4 {[%clk 0:03:02]}  Bxh4 {[%clk 0:02:49]} 9. Qb3 {[%clk 0:03:00]}  Bc8 {[%clk 0:02:49]} 10. Nf3 {[%clk 0:02:59]}  Be7 {[%clk 0:02:49]} 11. g5 {[%clk 0:02:57]}  Qb6 {[%clk 0:02:46]} 12. Qc2 {[%clk 0:02:53]}  Bf8 {[%clk 0:02:29]} 13. Bd3 {[%clk 0:02:41]}  Ne7 {[%clk 0:02:29]} 14. Ne5 {[%clk 0:02:36]}  Nd7 {[%clk 0:02:22]} 15. O-O-O {[%clk 0:02:17]}  Nxe5 {[%clk 0:02:20]} 16. Bxe5 {[%clk 0:02:17]}  Be6 {[%clk 0:02:20]} 17. f4 {[%clk 0:01:57]}  O-O-O {[%clk 0:02:15]} 18. Kb1 {[%clk 0:01:52]}  Ng6 {[%clk 0:00:40]} 19. f5 {[%clk 0:01:43]}  Nxe5 {[%clk 0:00:38]} 20. dxe5 {[%clk 0:01:43]}  Bd7 {[%clk 0:00:34]} 21. e4 {[%clk 0:01:42]}  dxe4 {[%clk 0:00:28]} 22. Nxe4 {[%clk 0:01:38]}  Kb8 {[%clk 0:00:28]} 23. Rhf1 {[%clk 0:01:35]}  Bc8 {[%clk 0:00:26]} 24. Bc4 {[%clk 0:01:31]}  h6 {[%clk 0:00:22]} 25. Bxf7 {[%clk 0:01:25]}  Rxd1+ {[%clk 0:00:16]} 26. Qxd1 {[%clk 0:01:24]}  Qb5 {[%clk 0:00:15]} 27. g6 {[%clk 0:01:20]}  Qxe5 {[%clk 0:00:13]} 28. Qd3 {[%clk 0:01:04]}  Bxf5 {[%clk 0:00:13]} 29. Qd8+ {[%clk 0:01:03]}  Bc8 {[%clk 0:00:11]} 30. Nc3 {[%clk 0:00:55]}  Bb4 {[%clk 0:00:10]} 31. Qxh8 {[%clk 0:00:52]}  Bxc3 {[%clk 0:00:10]} 32. bxc3 {[%clk 0:00:45]}  Qb5+ {[%clk 0:00:10]} 33. Kc2 {[%clk 0:00:44]}  Qxf1 {[%clk 0:00:10]} 34. Qxg7 {[%clk 0:00:44]}  Qf5+ {[%clk 0:00:10]} 35. Kd2 {[%clk 0:00:44]}  Qf4+ {[%clk 0:00:10]} 36. Kc2 {[%clk 0:00:40]}  Bf5+ {[%clk 0:00:09]} 37. Kb2 {[%clk 0:00:38]}  Qf2+ {[%clk 0:00:08]} 38. Ka3 {[%clk 0:00:34]}  Qc5+ {[%clk 0:00:07]} 39. Kb3 {[%clk 0:00:32]}  Qb5+ {[%clk 0:00:07]} 40. Ka3 {[%clk 0:00:33]}  Qc5+ {[%clk 0:00:07]} 41. Kb2 {[%clk 0:00:33]}  Qf2+ {[%clk 0:00:07]} 42. Kb3 {[%clk 0:00:28]}  Qb6+ {[%clk 0:00:06]} 43. Kc4 {[%clk 0:00:24]}  Qa6+ {[%clk 0:00:03]} 44. Kd4 {[%clk 0:00:24]}  Qd3+ {[%clk 0:00:03]} 45. Ke5 {[%clk 0:00:20]}  Qxc3+ {[%clk 0:00:04]} 46. Kd6 {[%clk 0:00:21]}  Qxg7 {[%clk 0:00:04]} 0-1


[Site "https://www.chess.com"]

[Event "Titled Tuesday Blitz November 15 Late 2022"]
[White "Talibov, Shiroghlan"]
[Black "Jimenez Almeida, Luis David"]
[WhiteFideId "13429078"]
[BlackFideId "22242244"]
[WhiteElo "2261"]
[BlackElo "2158"]
[Result "1-0"]
[Round "01"]
[TimeControl "180+1"]
[Date "2022.11.16"]
[WhiteClock "0:00:59"]
[BlackClock "0:00:24"]

1. c4 {[%clk 0:03:00]}  Nf6 {[%clk 0:02:58]} 2. Nc3 {[%clk 0:03:01]}  d5 {[%clk 0:02:57]} 3. d4 {[%clk 0:03:00]}  g6 {[%clk 0:02:57]} 4. g3 {[%clk 0:02:55]}  Bg7 {[%clk 0:02:53]} 5. Bg2 {[%clk 0:02:56]}  c6 {[%clk 0:02:50]} 6. Nf3 {[%clk 0:02:51]}  O-O {[%clk 0:02:49]} 7. cxd5 {[%clk 0:02:52]}  cxd5 {[%clk 0:02:49]} 8. Ne5 {[%clk 0:02:51]}  e6 {[%clk 0:02:46]} 9. O-O {[%clk 0:02:51]}  Nfd7 {[%clk 0:02:43]} 10. Nf3 {[%clk 0:02:51]}  Nc6 {[%clk 0:02:43]} 11. e4 {[%clk 0:02:51]}  dxe4 {[%clk 0:02:41]} 12. Nxe4 {[%clk 0:02:52]}  Nb6 {[%clk 0:02:38]} 13. Bg5 {[%clk 0:02:49]}  f6 {[%clk 0:02:23]} 14. Bf4 {[%clk 0:02:48]}  g5 {[%clk 0:02:20]} 15. Be3 {[%clk 0:02:43]}  Nd5 {[%clk 0:02:18]} 16. Qb3 {[%clk 0:02:32]}  b6 {[%clk 0:02:13]} 17. Rac1 {[%clk 0:02:30]}  Bb7 {[%clk 0:02:12]} 18. Rfe1 {[%clk 0:02:28]}  Qd7 {[%clk 0:02:04]} 19. Qa4 {[%clk 0:02:22]}  Kh8 {[%clk 0:02:01]} 20. h4 {[%clk 0:02:12]}  g4 {[%clk 0:01:56]} 21. Nfd2 {[%clk 0:02:09]}  Nxe3 {[%clk 0:01:54]} 22. fxe3 {[%clk 0:02:08]}  Rad8 {[%clk 0:01:48]} 23. Nxf6 {[%clk 0:01:51]}  Bxf6 {[%clk 0:01:39]} 24. Bxc6 {[%clk 0:01:50]}  Bxc6 {[%clk 0:01:28]} 25. Qxc6 {[%clk 0:01:51]}  Qe7 {[%clk 0:01:25]} 26. Rf1 {[%clk 0:01:38]}  Bg7 {[%clk 0:01:18]} 27. Qe4 {[%clk 0:01:36]}  e5 {[%clk 0:01:12]} 28. d5 {[%clk 0:01:33]}  Qd7 {[%clk 0:01:00]} 29. Rxf8+ {[%clk 0:01:22]}  Rxf8 {[%clk 0:00:59]} 30. Rf1 {[%clk 0:01:13]}  Rxf1+ {[%clk 0:00:53]} 31. Kxf1 {[%clk 0:01:14]}  h5 {[%clk 0:00:51]} 32. Ke2 {[%clk 0:01:12]}  Qb5+ {[%clk 0:00:39]} 33. Nc4 {[%clk 0:01:12]}  Qa4 {[%clk 0:00:36]} 34. a3 {[%clk 0:01:09]}  b5 {[%clk 0:00:30]} 35. Nd2 {[%clk 0:01:04]}  Qa6 {[%clk 0:00:27]} 36. Qd3 {[%clk 0:00:59]}  Qb6 {[%clk 0:00:26]} 37. Ne4 {[%clk 0:00:59]}  a6 {[%clk 0:00:25]} 38. Ng5 {[%clk 0:00:59]}  b4 {[%clk 0:00:24]} 39. Qh7# {[%clk 0:00:59]} 1-0


[Site "https://www.chess.com"]

[Event "Titled Tuesday Blitz November 15 Late 2022"]
[White "Tan, Ralph"]
[Black "Willow, Jonah B"]
[WhiteFideId "30966590"]
[BlackFideId "438804"]
[WhiteElo "2059"]
[BlackElo "2300"]
[Result "0-1"]
[Round "01"]
[TimeControl "180+1"]
[Date "2022.11.16"]
[WhiteClock "0:00:05"]
[BlackClock "0:00:31"]

1. Nf3 {[%clk 0:03:00]}  c5 {[%clk 0:02:58]} 2. g3 {[%clk 0:03:01]}  Nc6 {[%clk 0:02:55]} 3. c4 {[%clk 0:02:59]}  g6 {[%clk 0:02:55]} 4. Bg2 {[%clk 0:02:58]}  Bg7 {[%clk 0:02:56]} 5. O-O {[%clk 0:02:58]}  e6 {[%clk 0:02:56]} 6. Nc3 {[%clk 0:02:59]}  Nge7 {[%clk 0:02:57]} 7. d3 {[%clk 0:02:55]}  O-O {[%clk 0:02:56]} 8. Rb1 {[%clk 0:02:20]}  b6 {[%clk 0:02:54]} 9. a3 {[%clk 0:02:11]}  Bb7 {[%clk 0:02:54]} 10. e3 {[%clk 0:02:07]}  d5 {[%clk 0:02:51]} 11. cxd5 {[%clk 0:02:01]}  exd5 {[%clk 0:02:49]} 12. d4 {[%clk 0:02:01]}  c4 {[%clk 0:02:48]} 13. Re1 {[%clk 0:01:30]}  Bc8 {[%clk 0:02:47]} 14. Bd2 {[%clk 0:00:56]}  Bf5 {[%clk 0:02:45]} 15. Rc1 {[%clk 0:00:55]}  Na5 {[%clk 0:02:46]} 16. Nh4 {[%clk 0:00:51]}  Bd3 {[%clk 0:02:40]} 17. Ne2 {[%clk 0:00:33]}  Nec6 {[%clk 0:02:27]} 18. Nf4 {[%clk 0:00:32]}  Be4 {[%clk 0:02:22]} 19. f3 {[%clk 0:00:30]}  Bf5 {[%clk 0:02:18]} 20. Nxf5 {[%clk 0:00:30]}  gxf5 {[%clk 0:02:19]} 21. Bxa5 {[%clk 0:00:30]}  Nxa5 {[%clk 0:02:19]} 22. Nh5 {[%clk 0:00:31]}  Nb3 {[%clk 0:02:17]} 23. Rc3 {[%clk 0:00:30]}  Qg5 {[%clk 0:02:11]} 24. Nxg7 {[%clk 0:00:30]}  Kxg7 {[%clk 0:02:12]} 25. f4 {[%clk 0:00:29]}  Qd8 {[%clk 0:02:12]} 26. Qh5 {[%clk 0:00:28]}  Re8 {[%clk 0:01:53]} 27. Qxf5 {[%clk 0:00:26]}  Nxd4 {[%clk 0:01:01]} 28. Qxd5 {[%clk 0:00:19]}  Qxd5 {[%clk 0:01:01]} 29. Bxd5 {[%clk 0:00:20]}  Rad8 {[%clk 0:01:02]} 30. Bg2 {[%clk 0:00:19]}  b5 {[%clk 0:01:01]} 31. Kf2 {[%clk 0:00:19]}  Nb3 {[%clk 0:00:59]} 32. e4 {[%clk 0:00:18]}  Rd2+ {[%clk 0:00:59]} 33. Re2 {[%clk 0:00:18]}  Red8 {[%clk 0:00:54]} 34. Re3 {[%clk 0:00:18]}  a5 {[%clk 0:00:48]} 35. e5 {[%clk 0:00:18]}  b4 {[%clk 0:00:47]} 36. axb4 {[%clk 0:00:17]}  axb4 {[%clk 0:00:48]} 37. e6 {[%clk 0:00:17]}  fxe6 {[%clk 0:00:44]} 38. Rxe6 {[%clk 0:00:18]}  c3 {[%clk 0:00:45]} 39. bxc3 {[%clk 0:00:18]}  bxc3 {[%clk 0:00:46]} 40. Re7+ {[%clk 0:00:18]}  Kf8 {[%clk 0:00:46]} 41. Rc7 {[%clk 0:00:17]}  Nd4 {[%clk 0:00:44]} 42. Bf1 {[%clk 0:00:03]}  Nxe2 {[%clk 0:00:44]} 43. Bxe2 {[%clk 0:00:03]}  Re8 {[%clk 0:00:44]} 44. Rxc3 {[%clk 0:00:03]}  Rdxe2+ {[%clk 0:00:44]} 45. Kf3 {[%clk 0:00:04]}  Rxh2 {[%clk 0:00:44]} 46. Kg4 {[%clk 0:00:04]}  Rhe2 {[%clk 0:00:43]} 47. Rc7 {[%clk 0:00:05]}  R2e7 {[%clk 0:00:43]} 48. Rc6 {[%clk 0:00:04]}  Re6 {[%clk 0:00:43]} 49. Rc7 {[%clk 0:00:05]}  R8e7 {[%clk 0:00:43]} 50. Rc8+ {[%clk 0:00:05]}  Kg7 {[%clk 0:00:44]} 51. Rc5 {[%clk 0:00:06]}  Rg6+ {[%clk 0:00:44]} 52. Kf3 {[%clk 0:00:07]}  Rf7 {[%clk 0:00:43]} 53. g4 {[%clk 0:00:07]}  h6 {[%clk 0:00:43]} 54. f5 {[%clk 0:00:07]}  Rd6 {[%clk 0:00:43]} 55. Kf4 {[%clk 0:00:07]}  Rfd7 {[%clk 0:00:43]} 56. Ke5 {[%clk 0:00:06]}  Rd1 {[%clk 0:00:44]} 57. Rc6 {[%clk 0:00:07]}  Re1+ {[%clk 0:00:44]} 58. Kf4 {[%clk 0:00:07]}  Rd4+ {[%clk 0:00:40]} 59. Kf3 {[%clk 0:00:07]}  Rf1+ {[%clk 0:00:37]} 60. Kg2 {[%clk 0:00:07]}  Rff4 {[%clk 0:00:36]} 61. Rg6+ {[%clk 0:00:08]}  Kh7 {[%clk 0:00:37]} 62. Kg3 {[%clk 0:00:08]}  Rf1 {[%clk 0:00:36]} 63. Re6 {[%clk 0:00:08]}  Rg1+ {[%clk 0:00:35]} 64. Kh3 {[%clk 0:00:07]}  Rdxg4 {[%clk 0:00:35]} 65. f6 {[%clk 0:00:08]}  Kg6 {[%clk 0:00:32]} 66. Re2 {[%clk 0:00:04]}  Kxf6 {[%clk 0:00:31]} 67. Rf2+ {[%clk 0:00:05]}  Kg7 {[%clk 0:00:31]} 68. Rg2 {[%clk 0:00:05]}  R4xg2 {[%clk 0:00:31]} 0-1


[Site "https://www.chess.com"]

[Event "Titled Tuesday Blitz November 15 Late 2022"]
[White "Tanenbaum, Zachary"]
[Black "Buchenau, Frank"]
[WhiteFideId "2060850"]
[BlackFideId "4604350"]
[WhiteElo "2175"]
[BlackElo "2157"]
[Result "1-0"]
[Round "01"]
[TimeControl "180+1"]
[Date "2022.11.16"]
[WhiteClock "0:00:32"]
[BlackClock "0:00:32"]

1. e4 {[%clk 0:02:11]}  e6 {[%clk 0:02:58]} 2. d4 {[%clk 0:02:11]}  d5 {[%clk 0:02:59]} 3. Nc3 {[%clk 0:02:11]}  Nf6 {[%clk 0:02:59]} 4. Bg5 {[%clk 0:02:11]}  dxe4 {[%clk 0:02:58]} 5. Nxe4 {[%clk 0:02:11]}  Be7 {[%clk 0:02:59]} 6. Bxf6 {[%clk 0:02:12]}  gxf6 {[%clk 0:02:59]} 7. Nf3 {[%clk 0:02:12]}  f5 {[%clk 0:02:59]} 8. Nc3 {[%clk 0:02:13]}  a6 {[%clk 0:03:00]} 9. Qe2 {[%clk 0:02:13]}  Qd6 {[%clk 0:02:46]} 10. O-O-O {[%clk 0:02:13]}  Nd7 {[%clk 0:02:43]} 11. g3 {[%clk 0:02:06]}  b5 {[%clk 0:02:41]} 12. Bg2 {[%clk 0:01:47]}  b4 {[%clk 0:02:37]} 13. Na4 {[%clk 0:01:45]}  Bb7 {[%clk 0:02:37]} 14. Rhe1 {[%clk 0:01:43]}  Be4 {[%clk 0:02:28]} 15. Kb1 {[%clk 0:01:18]}  Qc6 {[%clk 0:02:26]} 16. b3 {[%clk 0:01:17]}  Nf6 {[%clk 0:02:20]} 17. Ne5 {[%clk 0:01:15]}  Qb7 {[%clk 0:02:17]} 18. Bxe4 {[%clk 0:01:05]}  Nxe4 {[%clk 0:02:16]} 19. Qh5 {[%clk 0:01:02]}  O-O {[%clk 0:02:06]} 20. d5 {[%clk 0:00:57]}  exd5 {[%clk 0:01:28]} 21. Qxf5 {[%clk 0:00:57]}  Bd6 {[%clk 0:01:10]} 22. Nd7 {[%clk 0:00:48]}  Rfe8 {[%clk 0:01:09]} 23. f3 {[%clk 0:00:39]}  Nc3+ {[%clk 0:00:53]} 24. Nxc3 {[%clk 0:00:39]}  Rxe1 {[%clk 0:00:52]} 25. Nf6+ {[%clk 0:00:37]}  Kg7 {[%clk 0:00:43]} 26. Qg5+ {[%clk 0:00:34]}  Kf8 {[%clk 0:00:41]} 27. Rxe1 {[%clk 0:00:32]}  bxc3 {[%clk 0:00:32]} 28. Nxh7# {[%clk 0:00:32]} 1-0


[Site "https://www.chess.com"]